bitfinex-derivatives/quotes_SOLF0:USTF0_20250124
["timestamp","ask_amount","ask_price","bid_price","bid_amount"]
[1737706108548,3.838,260.59,260.57,0.02503774]
[1737706109352,3.838,260.59,260.57,193.01735141]
[1737706109858,3.838,260.59,260.57,180.16749619]
[1737706111253,0.02789786,260.62,260.57,180.16749619]
[1737706111454,3.8381,260.58,260.57,180.16749619]
[1737706111753,0.02789786,260.62,260.57,180.16749619]
[1737706111951,3.8379,260.6,260.57,180.16749619]
[1737706112256,3.8379,260.6,260.57,171.60042044]
[1737706112658,0.02789786,260.62,260.57,171.60042044]
[1737706112861,3.838,260.59,260.57,171.60042044]
[1737706113661,3.8381,260.58,260.57,171.60042044]
[1737706114863,3.838,260.59,260.57,171.60042044]
[1737706118159,0.02789786,260.62,260.57,171.60042044]
[1737706118353,3.8381,260.58,260.57,171.60042044]
[1737706120958,3.8393,260.5,260.49,165.54852044]
[1737706121164,3.8393,260.5,260.49,159.50682044]
[1737706121462,9.18895409,260.5,260.36,150.96462044]
[1737706121659,9.18895409,260.46,260.36,150.96462044]
[1737706122055,0.02557489,260.44,260.36,150.96462044]
[1737706123061,3.8404,260.43,260.36,150.96462044]
[1737706123262,0.02557489,260.44,260.36,150.96462044]
[1737706123563,3.8407,260.41,260.36,150.96462044]
[1737706123962,0.02557489,260.44,260.36,150.96462044]
[1737706123963,14.74893578,260.44,260.36,150.96462044]
[1737706125153,3.8411,260.38,260.36,150.96462044]
[1737706125861,3.8411,260.38,260.36,145.14772044]
[1737706126061,3.8411,260.38,260.36,132.48542044]
[1737706126262,14.74893578,260.44,260.27,3.7957]
[1737706126460,3.842,260.32,260.27,3.7957]
[1737706126664,0.02457212,260.38,260.27,122.25742044]
[1737706126964,0.0286369,260.35,260.27,122.25742044]
[1737706127165,3.8417,260.34,260.27,122.25742044]
[1737706127361,0.0286369,260.35,260.27,120.94932044]
[1737706127767,3.8425,260.28,260.27,118.46172044]
[1737706128666,3.8702369,260.35,260.27,118.46172044]
[1737706128860,0.0286369,260.35,260.27,118.46172044]
[1737706130464,0.0286369,260.35,260.27,108.18475721]
[1737706130960,0.0286369,260.35,260.28,1.229]
[1737706131267,3.8402,260.44,260.28,109.41375721]
[1737706131862,3.8404,260.43,260.28,109.41375721]
[1737706132067,19.98222002,260.49,260.28,109.41375721]
[1737706132269,0.02611727,260.38,260.33,0.02566256]
[1737706132463,19.98222002,260.49,260.28,109.41375721]
[1737706132668,0.02901866,260.38,260.33,0.0265488]
[1737706132964,19.98222002,260.49,260.28,109.41375721]
[1737706133170,0.02919488,260.38,260.33,0.02881511]
[1737706133371,19.98222002,260.49,260.28,109.41375721]
[1737706134066,19.98222002,260.49,260.31,3.842]
[1737706134472,0.0253765,260.43,260.37,0.02767414]
[1737706134768,0.0253765,260.43,260.37,108.21243135]
[1737706135265,14.72336089,260.54,260.37,108.21243135]
[1737706135471,14.72336089,260.54,260.37,108.18475721]
[1737706135672,14.72336089,260.54,260.38,1.3199]
[1737706136066,3.84,260.45,260.38,1.3199]
[1737706136371,3.84,260.45,260.39,1.2837]
[1737706136671,0.02785877,260.44,260.39,1.31073006]
[1737706137073,3.84,260.45,260.39,1.31073006]
[1737706137274,14.72336089,260.54,260.39,1.31073006]
[1737706137474,14.72336089,260.54,260.39,109.49548727]
[1737706137475,3.8402,260.44,260.39,109.49548727]
[1737706137665,14.72336089,260.54,260.39,109.49548727]
[1737706138174,3.8404,260.43,260.39,109.49548727]
[1737706138971,0.02669771,260.44,260.39,109.49548727]
[1737706139172,3.8405,260.42,260.39,109.49548727]
[1737706139669,0.02669771,260.44,260.39,109.49548727]
[1737706139670,3.8406,260.41,260.39,109.49548727]
[1737706140877,3.8406,260.41,260.39,108.21178727]
[1737706141480,3.8406,260.41,260.39,96.52958727]
[1737706141682,3.8419,260.32,260.31,90.68388727]
[1737706141977,14.72336089,260.52,260.31,90.68388727]
[1737706142481,3.8402,260.44,260.31,90.68388727]
[1737706142680,3.86831793,260.44,260.39,0.02709835]
[1737706142876,0.02811793,260.44,260.39,90.71098562]
[1737706143676,3.8406,260.41,260.39,90.71098562]
[1737706146381,0.02811793,260.44,260.39,90.71098562]
[1737706151593,0.02811793,260.44,260.4,2.5716]
[1737706152302,0.02811793,260.44,260.39,80.42570473]
[1737706153293,9.19981437,260.54,260.39,80.42570473]
[1737706154401,0.02564141,260.49,260.44,0.02466009]
[1737706155701,0.02564141,260.49,260.44,80.45036482]
[1737706157008,0.02564141,260.49,260.44,84.29036482]
[1737706157803,0.02564141,260.49,260.44,80.45036482]
[1737706158104,3.8396,260.48,260.44,80.45036482]
[1737706158307,0.02564141,260.49,260.44,80.45036482]
[1737706159215,3.86514141,260.49,260.44,80.45036482]
[1737706159410,0.02564141,260.49,260.44,80.45036482]
[1737706159608,3.8396,260.48,260.44,80.45036482]
[1737706160106,0.02564141,260.49,260.44,80.45036482]
[1737706160803,9.19981437,260.62,260.44,381.65017919]
[1737706161008,9.19981437,260.62,260.45,1.2395]
[1737706161410,3.8381,260.58,260.45,1.2395]
[1737706161913,0.02523708,260.54,260.49,0.02636679]
[1737706162112,0.02523708,260.54,260.49,80.45207152]
[1737706162514,3.8389,260.53,260.49,80.45207152]
[1737706163914,0.02523708,260.54,260.49,80.45207152]
[1737706165314,3.86393708,260.54,260.49,80.45207152]
[1737706166208,0.02523708,260.54,260.49,80.45207152]
[1737706166809,3.86393708,260.54,260.49,80.45207152]
[1737706167608,0.02523708,260.54,260.49,80.45207152]
[1737706170507,0.02523708,260.54,260.49,84.29147152]
[1737706170706,15.75536545,260.71,260.49,80.45207152]
[1737706170911,15.75536545,260.71,260.5,1.2317]
[1737706171309,15.75536545,260.71,260.53,3.8388]
[1737706171813,3.8378,260.6,260.56,0.02712003]
[1737706172507,3.8378,260.6,260.49,72.67269466]
[1737706173115,0.02580068,260.62,260.49,72.67269466]
[1737706173314,9.19981437,260.59,260.49,72.67269466]
[1737706173610,9.19981437,260.59,260.53,0.02688994]
[1737706173815,3.8388,260.54,260.53,0.02688994]
[1737706174712,3.8385,260.56,260.53,0.02688994]
[1737706174914,0.02593452,260.57,260.53,0.02688994]
[1737706177816,0.02593452,260.57,260.53,72.6995846]
[1737706178417,3.8387,260.54,260.53,72.6995846]
[1737706178921,9.22574889,260.57,260.53,72.6995846]
[1737706179216,0.02593452,260.57,260.53,72.6995846]
[1737706181512,9.19981437,260.69,260.53,72.6995846]
[1737706181716,9.19981437,260.69,260.58,3.838]
[1737706182220,3.8367,260.68,260.59,5.1218]
[1737706182719,9.19981437,260.73,260.61,0.02916138]
[1737706182720,0.02555579,260.66,260.61,0.02916138]
[1737706182920,0.02555579,260.66,260.61,72.70185604]
[1737706184108,0.02555579,260.66,260.61,76.53945604]
[1737706187613,3.8357,260.75,260.66,3.8369]
[1737706187921,3.8357,260.75,260.66,72.67269466]
[1737706188719,0.02867316,260.73,260.68,0.02601798]
[1737706189317,3.8361,260.72,260.68,0.02601798]
[1737706189524,0.02867316,260.73,260.68,0.02601798]
[1737706192217,3.86457316,260.73,260.68,0.02601798]
[1737706192423,0.02867316,260.73,260.68,0.02601798]
[1737706192922,0.02867316,260.73,260.68,72.69871264]
[1737706194213,3.8362,260.71,260.68,72.69871264]
[1737706194420,3.8362,260.71,260.68,59.85390734]
[1737706196225,0.02867316,260.73,260.68,59.85390734]
[1737706196429,3.836,260.72,260.68,59.85390734]
[1737706197119,0.02867316,260.73,260.68,59.85390734]
[1737706197324,9.19981437,260.81,260.7,3.8362]
[1737706197523,1.3075,260.84,260.68,61.18120734]
[1737706197924,3.8352,260.78,260.69,3.8364]
[1737706198426,0.02863097,260.76,260.71,0.02832065]
[1737706198627,0.02863097,260.76,260.71,59.88222799]
[1737706200727,9.19981437,260.85,260.73,3.8359]
[1737706200923,9.19981437,260.85,260.73,63.68980734]
[1737706201123,9.19981437,260.85,260.73,59.85390734]
[1737706202132,3.8349,260.8,260.76,0.02852799]
[1737706202831,3.8353,260.77,260.76,0.02852799]
[1737706203031,3.8353,260.77,260.76,59.88243533]
[1737706205633,3.8353,260.77,260.76,2.799e-05]
[1737706206029,13.03511437,260.77,260.76,2.799e-05]
[1737706206333,9.19981437,260.77,260.56,9.19981437]
[1737706206636,9.19981437,260.7,260.52,9.19981437]
[1737706206834,9.19981437,260.66,260.48,9.19981437]
[1737706207329,0.02682162,260.6,260.54,0.02687862]
[1737706208740,0.02682162,260.6,260.55,3.8385]
[1737706209028,0.02682162,260.6,260.55,1.3153]
[1737706209234,0.02682162,260.6,260.56,3.8383]
[1737706209435,0.02682162,260.6,260.55,1.3153]
[1737706210028,0.02682162,260.6,260.57,3.8381]
[1737706210633,3.8368,260.67,260.57,3.8381]
[1737706210831,9.19981437,260.7,260.55,1.3153]
[1737706211738,0.02472146,260.65,260.6,0.02750506]
[1737706213039,3.8376,260.62,260.6,0.02750506]
[1737706216542,3.8376,260.62,260.49,9.19981437]
[1737706216739,9.19981437,260.7,260.49,9.19981437]
[1737706217240,3.8376,260.61,260.5,3.8391]
[1737706217443,3.8376,260.61,260.49,9.19981437]
[1737706217645,0.02733319,260.58,260.53,0.0245612]
[1737706218745,0.02733319,260.58,260.56,3.8383]
[1737706218945,9.19981437,260.74,260.57,9.19981437]
[1737706219341,1.2126,260.76,260.57,9.19981437]
[1737706219947,3.8363,260.7,260.61,13.03731437]
[1737706220140,0.02930777,260.69,260.64,0.0248961]
[1737706222943,3.8369,260.66,260.64,0.0248961]
[1737706223845,0.02930777,260.69,260.64,0.0248961]
[1737706224043,3.8367,260.68,260.64,0.0248961]
[1737706224239,0.02930777,260.69,260.64,0.0248961]
[1737706224651,0.02930777,260.69,260.54,3.4920561]
[1737706224948,0.02930777,260.69,260.59,3.8379]
[1737706225845,0.02930777,260.69,260.61,0.02647509]
[1737706226343,3.86590777,260.69,260.61,0.02647509]
[1737706226549,0.02930777,260.69,260.61,0.02647509]
[1737706227853,0.02930777,260.69,260.62,9.19981437]
[1737706228352,0.02930777,260.69,260.63,3.8372]
[1737706231848,0.02930777,260.69,260.62,9.19981437]
[1737706232055,0.02930777,260.69,260.65,3.837]
[1737706232255,0.02930777,260.69,260.62,9.19981437]
[1737706232551,0.02930777,260.69,260.65,3.8369]
[1737706232754,0.02930777,260.69,260.62,9.19981437]
[1737706233155,3.8362,260.71,260.65,3.8369]
[1737706233852,9.19981437,260.82,260.62,9.19981437]
[1737706234057,3.836,260.73,260.67,3.8368]
[1737706234260,3.836,260.73,260.69,0.02485811]
[1737706234459,3.8363,260.7,260.69,0.02485811]
[1737706236363,0.02820887,260.75,260.58,1.46102645]
[1737706236563,9.19981437,260.78,260.58,1.46102645]
[1737706237164,3.8358,260.74,260.67,3.8368]
[1737706237659,0.02666213,260.73,260.68,0.02576092]
[1737706238464,3.8361,260.72,260.68,0.02576092]
[1737706240363,3.8362,260.71,260.68,0.02576092]
[1737706241466,3.8365,260.69,260.68,0.02576092]
[1737706241966,3.8365,260.69,260.68,6.092e-05]
[1737706244368,1.36616213,260.73,260.68,6.092e-05]
[1737706244369,0.02666213,260.73,260.68,6.092e-05]
[1737706245470,3.836,260.72,260.68,6.092e-05]
[1737706245663,0.02666213,260.73,260.68,6.092e-05]
[1737706246368,3.8365,260.69,260.68,6.092e-05]
[1737706249169,91.27374721,260.72,260.68,6.092e-05]
[1737706250061,3.8362,260.71,260.68,6.092e-05]
[1737706252669,3.8363,260.7,260.68,6.092e-05]
[1737706253265,3.8365,260.69,260.68,6.092e-05]
[1737706257363,91.27374721,260.72,260.47,12.98062298]
[1737706257562,91.27374721,260.71,260.47,12.98062298]
[1737706257772,91.27374721,260.71,260.47,3.44]
[1737706258471,0.02612593,260.64,260.59,0.02671842]
[1737706259571,3.86332593,260.64,260.59,0.02671842]
[1737706259872,0.02612593,260.64,260.59,0.02671842]
[1737706260073,3.8377,260.61,260.59,0.02671842]
[1737706260272,0.02612593,260.64,260.59,0.02671842]
[1737706262071,3.8375,260.62,260.59,0.02671842]
[1737706262670,3.8378,260.6,260.59,0.02671842]
[1737706263171,0.02612593,260.64,260.59,0.02671842]
[1737706263371,3.8376,260.62,260.59,0.02671842]
[1737706264274,0.02612593,260.64,260.59,0.02671842]
[1737706265873,3.8375,260.63,260.59,0.02671842]
[1737706267777,91.27374721,260.71,260.62,5.87439218]
[1737706267969,91.27374721,260.71,260.69,5.87439218]
[1737706268171,3.8356,260.75,260.69,5.87439218]
[1737706268774,3.86111306,260.75,260.69,5.90372068]
[1737706268972,9.71059218,260.71,260.69,0.0293285]
[1737706269677,0.02551306,260.75,260.69,0.0293285]
[1737706269879,3.836,260.72,260.69,0.0293285]
[1737706270183,0.02551306,260.75,260.69,0.0293285]
[1737706270378,3.86111306,260.75,260.69,0.0293285]
[1737706271283,0.02551306,260.75,260.69,0.0293285]
[1737706272882,0.02551306,260.75,260.69,1.2443285]
[1737706273283,0.02551306,260.75,260.69,3.7314285]
[1737706273484,91.27374721,260.87,260.72,9.1811819]
[1737706274085,91.27374721,260.87,260.72,8.9301119]
[1737706274585,0.02487301,260.82,260.77,0.0278712]
[1737706275781,3.835,260.79,260.77,0.0278712]
[1737706277685,0.02487301,260.82,260.8,3.8348]
[1737706277884,0.02487301,260.82,260.77,0.0278712]
[1737706278387,0.02487301,260.82,260.8,3.8348]
[1737706278582,2.4445,260.93,260.8,9.1811819]
[1737706279085,2.4445,260.93,260.76,9.1811819]
[1737706279487,3.8337,260.88,260.77,3.8352]
[1737706279688,0.02759667,260.87,260.82,0.02780848]
[1737706281283,3.8343,260.84,260.82,0.02780848]
[1737706282879,95.10774721,260.86,260.82,0.02780848]
[1737706283686,91.27374721,260.86,260.82,0.02780848]
[1737706284283,0.02759667,260.87,260.82,0.02780848]
[1737706284888,0.02759667,260.87,260.85,3.8341]
[1737706286787,1.2775,261.0,260.88,9.1811819]
[1737706286987,91.27374721,261.01,260.88,9.1811819]
[1737706287887,91.27374721,261.01,260.92,0.02578033]
[1737706287888,0.02558753,260.97,260.92,0.02578033]
[1737706290794,3.8329,260.93,260.92,0.02578033]
[1737706292490,3.8338,260.88,260.81,1.2403]
[1737706293388,92.58804721,260.96,260.81,1.2403]
[1737706293585,0.02638693,260.87,260.82,0.02908087]
[1737706294690,3.8341,260.85,260.82,0.02908087]
[1737706297289,0.02638693,260.87,260.82,0.02908087]
[1737706297594,0.02638693,260.87,260.85,3.834]
[1737706299388,0.02638693,260.87,260.82,9.21026277]
[1737706299588,0.02638693,260.87,260.83,3.8344]
[1737706299889,0.02638693,260.87,260.82,9.21026277]
[1737706300091,0.02638693,260.87,260.85,3.8341]
[1737706301093,0.02638693,260.87,260.86,9.1811819]
[1737706301296,91.27374721,260.95,260.86,9.1811819]
[1737706301587,91.27374721,261.02,260.86,9.1811819]
[1737706301792,91.27374721,261.02,260.9,9.1811819]
[1737706301987,91.27374721,261.02,260.94,3.8328]
[1737706302393,0.02761474,261.01,260.95,0.02589149]
[1737706302788,3.8324,260.97,260.95,0.02589149]
[1737706303497,3.8322,260.99,260.95,0.02589149]
[1737706304600,3.85941474,261.01,260.95,0.02589149]
[1737706304795,0.02761474,261.01,260.95,0.02589149]
[1737706305800,0.02761474,261.01,260.95,3.85849149]
[1737706306498,0.02761474,261.01,260.96,3.8324]
[1737706309501,3.85931474,261.01,260.95,0.02589149]
[1737706310001,0.02761474,261.01,260.98,9.1811819]
[1737706310899,91.27374721,261.13,260.98,9.1811819]
[1737706311194,91.27374721,261.13,261.02,9.1811819]
[1737706311399,3.8303,261.11,261.03,3.8313]
[1737706311894,0.02808617,261.1,261.06,9.1811819]
[1737706312095,91.27374721,261.23,261.06,9.1811819]
[1737706312299,93.81324721,261.23,261.11,9.1811819]
[1737706312493,3.8292,261.18,261.11,9.1811819]
[1737706312895,93.81324721,261.23,261.11,9.1811819]
[1737706313404,0.02620403,261.2,261.14,0.02564875]
[1737706314503,3.8294,261.17,261.14,0.02564875]
[1737706315299,0.02620403,261.2,261.14,0.02564875]
[1737706315508,3.8297,261.15,261.14,0.02564875]
[1737706319908,3.8296,261.16,261.14,0.02564875]
[1737706320405,0.02620403,261.2,261.14,0.02564875]
[1737706320609,93.87274721,261.34,261.21,9.1811819]
[1737706321304,93.87274721,261.34,261.25,9.1811819]
[1737706321500,3.8271,261.33,261.25,9.1811819]
[1737706321905,0.02856404,261.32,261.27,0.02679715]
[1737706322102,3.8274,261.31,261.27,0.02679715]
[1737706322303,0.02856404,261.32,261.27,0.02679715]
[1737706323806,3.8275,261.3,261.27,0.02679715]
[1737706324203,0.02856404,261.32,261.27,0.02679715]
[1737706325608,91.27374721,261.41,261.3,9.1811819]
[1737706326206,3.8262,261.39,261.31,3.8273]
[1737706326408,91.27374721,261.41,261.3,9.1811819]
[1737706326813,91.27374721,261.41,261.33,0.02654996]
[1737706327008,3.8268,261.35,261.33,0.02654996]
[1737706327807,3.8268,261.35,261.33,4.996e-05]
[1737706328812,91.27374721,261.41,261.33,4.996e-05]
[1737706329014,3.85307429,261.37,261.33,4.996e-05]
[1737706330016,0.02657429,261.37,261.33,4.996e-05]
[1737706330213,3.8266,261.36,261.33,4.996e-05]
[1737706330813,3.8269,261.35,261.33,4.996e-05]
[1737706331811,2.5463,261.34,261.33,4.996e-05]
[1737706332414,93.82004721,261.34,261.33,4.996e-05]
[1737706332709,2.5463,261.34,261.33,4.996e-05]
[1737706332911,3.8492,261.34,261.33,4.996e-05]
[1737706336212,2.5463,261.34,261.33,4.996e-05]
[1737706338514,3.8269,261.35,261.33,4.996e-05]
[1737706340120,0.02657429,261.37,261.33,4.996e-05]
[1737706341218,3.8267,261.36,261.33,4.996e-05]
[1737706341421,0.02657429,261.37,261.33,4.996e-05]
[1737706343120,3.8269,261.35,261.33,4.996e-05]
[1737706348920,3.85307429,261.37,261.33,4.996e-05]
[1737706349228,0.02657429,261.37,261.33,4.996e-05]
[1737706354035,191.0,261.4,261.35,3.8267]
[1737706355638,194.826,261.4,261.33,3.82704996]
[1737706355934,191.0,261.4,261.33,4.996e-05]
[1737706356135,3.8265,261.37,261.33,4.996e-05]
[1737706356838,3.8266,261.36,261.33,4.996e-05]
[1737706358944,3.8268,261.35,261.33,4.996e-05]
[1737706359143,191.0,261.4,261.34,9.1811819]
[1737706359540,3.8257,261.42,261.34,9.1811819]
[1737706359842,1.2684,261.49,261.34,9.1811819]
[1737706360043,191.0,261.48,261.35,0.02870197]
[1737706360243,9.1811819,261.46,261.35,0.02870197]
[1737706361442,3.8262,261.39,261.35,0.02870197]
[1737706362246,191.0,261.45,261.35,0.02870197]
[1737706362442,3.8265,261.37,261.35,0.02870197]
[1737706362640,191.0,261.45,261.35,0.02870197]
[1737706362841,192.273,261.45,261.35,0.02870197]
[1737706363042,3.8266,261.36,261.35,0.02870197]
[1737706364342,3.8264,261.38,261.35,0.02870197]
[1737706364537,1.3396,261.41,261.35,0.02870197]
[1737706365146,3.8261,261.4,261.35,0.02870197]
[1737706365344,1.3396,261.41,261.35,0.02870197]
[1737706365746,3.8263,261.38,261.35,0.02870197]
[1737706366348,1.3396,261.41,261.35,0.02870197]
[1737706366648,3.8265,261.37,261.35,0.02870197]
[1737706367141,194.8255,261.44,261.35,3.85540197]
[1737706367342,191.0,261.44,261.36,9.1811819]
[1737706368241,191.0,261.44,261.39,3.8261]
[1737706368547,191.0,261.44,261.37,1.334]
[1737706369146,3.8256,261.43,261.37,1.334]
[1737706370648,191.0,261.44,261.37,1.334]
[1737706372150,191.0,261.44,261.39,3.8261]
[1737706372654,191.0,261.44,261.37,1.334]
[1737706372853,3.8258,261.42,261.36,9.1811819]
[1737706373152,2.611,261.53,261.36,9.1811819]
[1737706373354,3.8254,261.44,261.39,3.8261]
[1737706373548,191.0,261.58,261.42,9.1811819]
[1737706373847,191.0,261.58,261.46,9.1811819]
[1737706374050,191.0,261.58,261.47,0.02535461]
[1737706374754,1.275,261.6,261.47,0.02535461]
[1737706375254,1.275,261.6,261.5,9.1811819]
[1737706375651,1.275,261.6,261.52,0.02783628]
[1737706376044,5.0982,261.6,261.52,0.02783628]
[1737706376747,3.8236,261.57,261.52,0.02783628]
[1737706377258,1.275,261.6,261.52,0.02783628]
[1737706377454,3.8234,261.58,261.52,0.02783628]
[1737706377758,1.275,261.6,261.52,0.02783628]
[1737706378152,3.8234,261.58,261.52,0.02783628]
[1737706378448,1.275,261.6,261.52,0.02783628]
[1737706378653,3.8238,261.56,261.52,0.02783628]
[1737706379056,1.275,261.6,261.52,0.02783628]
[1737706380154,3.8235,261.57,261.52,0.02783628]
[1737706380752,3.8234,261.58,261.52,0.02783628]
[1737706381355,191.0,261.59,261.52,0.02783628]
[1737706381555,191.0,261.58,261.42,9.1811819]
[1737706381849,9.1811819,261.55,261.37,9.1811819]
[1737706382055,191.0,261.54,261.37,9.1811819]
[1737706382257,3.8248,261.48,261.39,3.8261]
[1737706382758,0.02698098,261.46,261.41,0.0289838]
[1737706382960,191.0,261.45,261.41,0.0289838]
[1737706385659,191.0,261.45,261.43,3.8255]
[1737706385959,0.02698098,261.46,261.41,9.2101657]
[1737706386161,97.33936342,261.58,261.45,9.1811819]
[1737706386354,97.33936342,261.57,261.49,9.1811819]
[1737706387352,97.33936342,261.57,261.5,0.02560155]
[1737706387753,3.824,261.54,261.5,0.02560155]
[1737706388859,3.8238,261.55,261.5,0.02560155]
[1737706389055,97.33936342,261.57,261.5,0.02560155]
[1737706389559,97.33936342,261.57,261.51,3.8243]
[1737706390359,97.33936342,261.57,261.52,3.8242]
[1737706391059,97.33936342,261.57,261.5,0.02560155]
[1737706391862,97.33936342,261.56,261.5,0.02560155]
[1737706392058,3.824,261.54,261.48,3.8247]
[1737706392255,3.824,261.54,261.5,0.02527924]
[1737706392758,97.33936342,261.56,261.5,0.02527924]
[1737706395460,97.33936342,261.56,261.5,3.84967924]
[1737706396267,97.33936342,261.56,261.5,0.02527924]
[1737706396458,97.33936342,261.56,261.52,3.8242]
[1737706396865,97.33936342,261.56,261.5,0.02527924]
[1737706396866,101.16306342,261.56,261.5,0.02527924]
[1737706397065,101.16306342,261.56,261.5,3.84967924]
[1737706397666,97.33936342,261.56,261.5,3.84967924]
[1737706397966,101.16316342,261.55,261.5,3.84967924]
[1737706398159,101.16316342,261.55,261.5,3.8244]
[1737706398365,101.16316342,261.55,261.5,3.85237498]
[1737706399066,97.33936342,261.55,261.53,3.8241]
[1737706399960,97.33936342,261.55,261.54,3.8239]
[1737706400359,97.33936342,261.55,261.5,0.02797498]
[1737706400768,97.33936342,261.55,261.53,3.824]
[1737706401761,97.33936342,261.55,261.54,3.8239]
[1737706402465,3.824,261.54,261.5,0.02797498]
[1737706402666,97.33936342,261.55,261.5,0.02797498]
[1737706403670,97.33936342,261.54,261.5,0.02797498]
[1737706404165,3.8241,261.53,261.5,0.02797498]
[1737706404770,97.33936342,261.54,261.5,3.85247498]
[1737706404965,97.33936342,261.54,261.5,0.02797498]
[1737706405170,97.33936342,261.54,261.53,3.8241]
[1737706406673,3.8229,261.62,261.53,3.824]
[1737706406875,3.8229,261.62,261.48,9.1811819]
[1737706407068,3.8229,261.62,261.55,0.02522847]
[1737706408076,3.8229,261.62,261.57,3.8235]
[1737706408876,95.32846342,261.66,261.55,0.02522847]
[1737706409078,95.32846342,261.65,261.55,0.02522847]
[1737706410377,9.1811819,261.63,261.55,0.02522847]
[1737706411472,3.8234,261.58,261.55,0.02522847]
[1737706412086,95.32846342,261.62,261.55,0.02522847]
[1737706412276,3.8232,261.59,261.55,0.02522847]
[1737706413486,95.32846342,261.62,261.55,0.02522847]
[1737706414187,3.8234,261.58,261.55,0.02522847]
[1737706415179,95.32846342,261.62,261.55,0.02522847]
[1737706415788,95.32846342,261.61,261.55,0.02522847]
[1737706416290,3.8232,261.59,261.55,0.02522847]
[1737706416487,95.32846342,261.61,261.55,0.02522847]
[1737706417785,5.83650366,261.6,261.55,0.02522847]
[1737706417985,5.83650366,261.71,261.65,3.8223]
[1737706418285,3.8212,261.73,261.65,9.65880366]
[1737706418591,5.83650366,261.72,261.65,0.02451034]
[1737706418787,3.8217,261.7,261.65,0.02451034]
[1737706419090,5.83650366,261.72,261.65,0.02451034]
[1737706419290,3.8217,261.7,261.65,0.02451034]
[1737706419981,9.11271554,261.74,261.65,0.02451034]
[1737706420186,3.8221,261.67,261.65,0.02451034]
[1737706423092,3.8225,261.64,261.53,3.8241]
[1737706423389,95.32846342,261.63,261.53,3.8241]
[1737706423586,95.32846342,261.62,261.48,9.11271554]
[1737706423891,3.8234,261.58,261.48,9.11271554]
[1737706424089,0.02470867,261.58,261.52,0.02464254]
[1737706424999,3.8235,261.57,261.52,0.02464254]
[1737706425188,0.02470867,261.58,261.52,0.02464254]
[1737706426293,3.8238,261.56,261.52,0.02464254]
[1737706429089,3.8238,261.55,261.52,0.02464254]
[1737706429298,95.32846342,261.57,261.52,0.02464254]
[1737706429698,3.8239,261.54,261.52,0.02464254]
[1737706429898,95.32846342,261.53,261.52,0.02464254]
[1737706431401,2.6342,261.57,261.52,0.02464254]
[1737706432203,3.8238,261.55,261.52,0.02464254]
[1737706432604,2.6342,261.57,261.52,0.02464254]
[1737706432903,1.3247,261.57,261.52,0.02464254]
[1737706433903,5.1483,261.57,261.52,3.84884254]
[1737706434703,3.8238,261.55,261.52,0.02464254]
[1737706434903,1.3247,261.57,261.52,0.02464254]
[1737706436102,5.1483,261.57,261.52,3.84884254]
[1737706437105,1.3247,261.57,261.52,0.02464254]
[1737706437405,1.3247,261.57,261.53,3.8241]
[1737706439112,102.03593506,261.82,261.56,18.22543108]
[1737706439409,102.03593506,261.82,261.64,9.11271554]
[1737706439611,2.5407,261.75,261.64,9.11271554]
[1737706439811,3.843,261.75,261.6,9.11271554]
[1737706440214,3.843,261.75,261.65,0.02940847]
[1737706441113,3.8215,261.71,261.65,0.02940847]
[1737706441314,3.843,261.75,261.65,0.02940847]
[1737706442112,3.8212,261.73,261.65,0.02940847]
[1737706442313,3.843,261.75,261.65,0.02940847]
[1737706443015,12.95571554,261.75,261.56,9.11271554]
[1737706443513,3.822,261.68,261.56,9.11271554]
[1737706444313,0.02546422,261.65,261.59,0.02759183]
[1737706447310,3.84786422,261.65,261.59,0.02759183]
[1737706449621,0.02546422,261.65,261.59,0.02759183]
[1737706449920,3.8225,261.64,261.59,0.02759183]
[1737706450420,0.02546422,261.65,261.59,3.85079183]
[1737706450821,0.02546422,261.65,261.59,0.02759183]
[1737706451920,3.8225,261.64,261.59,0.02759183]
[1737706452113,0.02546422,261.65,261.6,9.11271554]
[1737706452520,0.02546422,261.65,261.63,3.8225]
[1737706452723,0.02546422,261.65,261.6,9.11271554]
[1737706454421,3.84776422,261.65,261.6,9.11271554]
[1737706454821,3.8228,261.63,261.6,9.11271554]
[1737706455020,0.02546422,261.65,261.59,0.02759183]
[1737706456427,3.84786422,261.65,261.59,0.02759183]
[1737706456724,0.02546422,261.65,261.59,0.02759183]
[1737706458314,3.84796422,261.65,261.59,0.02759183]
[1737706458523,0.02546422,261.65,261.59,0.02759183]
[1737706459026,3.84776422,261.65,261.59,3.85079183]
[1737706459224,0.02546422,261.65,261.59,0.02759183]
[1737706459527,3.8228,261.62,261.59,0.02759183]
[1737706459823,0.02546422,261.65,261.59,0.02759183]